[Event "Titled Tuesday Blitz March 29 Early 2022"]
[White "Mika, Tomasz"]
[Black "Khripachenko, Alexander"]
[WhiteFideId "1132970"]
[BlackFideId "54184975"]
[WhiteElo "2116"]
[BlackElo "2177"]
[Result "0-1"]
[Round "02"]
[TimeControl "180+1"]
[Date "2022.03.30"]
[WhiteClock "0:00:04"]
[BlackClock "0:00:09"]

1. d4 {[%clk 0:02:58]}  Nf6 {[%clk 0:02:59]} 2. Nf3 {[%clk 0:02:58]}  g6 {[%clk 0:02:59]} 3. g3 {[%clk 0:02:58]}  Bg7 {[%clk 0:03:00]} 4. Bg2 {[%clk 0:02:58]}  O-O {[%clk 0:03:00]} 5. O-O {[%clk 0:02:59]}  d5 {[%clk 0:03:01]} 6. c4 {[%clk 0:02:59]}  dxc4 {[%clk 0:03:02]} 7. Nc3 {[%clk 0:02:54]}  c6 {[%clk 0:03:00]} 8. e4 {[%clk 0:02:16]}  b5 {[%clk 0:02:58]} 9. e5 {[%clk 0:02:13]}  Nd5 {[%clk 0:02:57]} 10. a4 {[%clk 0:02:13]}  Nxc3 {[%clk 0:02:53]} 11. bxc3 {[%clk 0:02:12]}  Bb7 {[%clk 0:02:53]} 12. Nd2 {[%clk 0:02:09]}  a6 {[%clk 0:02:50]} 13. Ne4 {[%clk 0:01:52]}  Nd7 {[%clk 0:02:48]} 14. e6 {[%clk 0:01:52]}  fxe6 {[%clk 0:02:46]} 15. Qg4 {[%clk 0:01:51]}  Kh8 {[%clk 0:02:38]} 16. Qxe6 {[%clk 0:01:51]}  Nf6 {[%clk 0:02:32]} 17. Ng5 {[%clk 0:01:50]}  Qd7 {[%clk 0:02:10]} 18. axb5 {[%clk 0:01:30]}  axb5 {[%clk 0:02:08]} 19. Rxa8 {[%clk 0:01:25]}  Bxa8 {[%clk 0:01:52]} 20. Nf7+ {[%clk 0:01:24]}  Kg8 {[%clk 0:01:40]} 21. Nh6+ {[%clk 0:01:14]}  Kh8 {[%clk 0:01:39]} 22. Nf7+ {[%clk 0:01:14]}  Rxf7 {[%clk 0:01:38]} 23. Qxf7 {[%clk 0:01:14]}  Bb7 {[%clk 0:01:38]} 24. Re1 {[%clk 0:01:10]}  Ng8 {[%clk 0:01:32]} 25. Bg5 {[%clk 0:00:58]}  b4 {[%clk 0:01:32]} 26. cxb4 {[%clk 0:00:48]}  c3 {[%clk 0:01:30]} 27. Qc4 {[%clk 0:00:32]}  Bxd4 {[%clk 0:01:24]} 28. h4 {[%clk 0:00:25]}  Bg7 {[%clk 0:01:21]} 29. Bf4 {[%clk 0:00:22]}  Qg4 {[%clk 0:01:11]} 30. Qe2 {[%clk 0:00:14]}  Qf5 {[%clk 0:01:04]} 31. b5 {[%clk 0:00:12]}  e5 {[%clk 0:00:22]} 32. Bc1 {[%clk 0:00:11]}  Ne7 {[%clk 0:00:23]} 33. Qc4 {[%clk 0:00:05]}  cxb5 {[%clk 0:00:20]} 34. Qxb5 {[%clk 0:00:04]}  Bxg2 {[%clk 0:00:21]} 35. Kxg2 {[%clk 0:00:04]}  Qf7 {[%clk 0:00:15]} 36. Qc5 {[%clk 0:00:03]}  Nd5 {[%clk 0:00:14]} 37. Be3 {[%clk 0:00:02]}  h6 {[%clk 0:00:13]} 38. Qc8+ {[%clk 0:00:02]}  Kh7 {[%clk 0:00:13]} 39. Qc6 {[%clk 0:00:02]}  e4 {[%clk 0:00:13]} 40. Bf4 {[%clk 0:00:02]}  Nxf4+ {[%clk 0:00:12]} 41. gxf4 {[%clk 0:00:03]}  Qxf4 {[%clk 0:00:13]} 42. Rxe4 {[%clk 0:00:03]}  Qf5 {[%clk 0:00:11]} 43. Re7 {[%clk 0:00:02]}  Qf6 {[%clk 0:00:09]} 44. Qc7 {[%clk 0:00:02]}  c2 {[%clk 0:00:09]} 45. Rf7 {[%clk 0:00:02]}  Qxf7 {[%clk 0:00:08]} 46. Qxf7 {[%clk 0:00:02]}  c1=Q {[%clk 0:00:08]} 47. h5 {[%clk 0:00:03]}  Qg5+ {[%clk 0:00:08]} 48. Kh2 {[%clk 0:00:03]}  Qxh5+ {[%clk 0:00:09]} 49. Kg1 {[%clk 0:00:04]}  Qg5+ {[%clk 0:00:09]} 0-1


[Site "https://www.chess.com"]

[Event "Titled Tuesday Blitz March 29 Early 2022"]
[White "Miszler, Levente"]
[Black "Tanenbaum, Zachary"]
[WhiteFideId "763276"]
[BlackFideId "2060850"]
[WhiteElo "1966"]
[BlackElo "2168"]
[Result "0-1"]
[Round "02"]
[TimeControl "180+1"]
[Date "2022.03.30"]
[WhiteClock "0:00:16"]
[BlackClock "0:00:18"]

1. Nf3 {[%clk 0:03:00]}  d5 {[%clk 0:02:59]} 2. e3 {[%clk 0:03:00]}  Nf6 {[%clk 0:02:59]} 3. b3 {[%clk 0:02:59]}  Bf5 {[%clk 0:02:59]} 4. Bb2 {[%clk 0:02:59]}  e6 {[%clk 0:02:59]} 5. c4 {[%clk 0:02:55]}  c6 {[%clk 0:02:59]} 6. Nc3 {[%clk 0:02:54]}  Nbd7 {[%clk 0:02:58]} 7. d4 {[%clk 0:02:54]}  Bd6 {[%clk 0:02:57]} 8. Bd3 {[%clk 0:02:53]}  Bg6 {[%clk 0:02:56]} 9. O-O {[%clk 0:02:51]}  O-O {[%clk 0:02:57]} 10. Re1 {[%clk 0:02:51]}  Bb4 {[%clk 0:02:50]} 11. Bxg6 {[%clk 0:02:47]}  hxg6 {[%clk 0:02:51]} 12. a3 {[%clk 0:02:46]}  Bxc3 {[%clk 0:02:50]} 13. Bxc3 {[%clk 0:02:47]}  Ne4 {[%clk 0:02:51]} 14. Bb2 {[%clk 0:02:45]}  g5 {[%clk 0:02:49]} 15. Nd2 {[%clk 0:02:43]}  Ndf6 {[%clk 0:02:48]} 16. Nxe4 {[%clk 0:02:42]}  Nxe4 {[%clk 0:02:49]} 17. f3 {[%clk 0:02:42]}  Nf6 {[%clk 0:02:49]} 18. e4 {[%clk 0:02:42]}  g6 {[%clk 0:02:38]} 19. Qd2 {[%clk 0:02:30]}  Nh5 {[%clk 0:02:24]} 20. exd5 {[%clk 0:02:20]}  cxd5 {[%clk 0:02:22]} 21. Re5 {[%clk 0:02:20]}  dxc4 {[%clk 0:01:35]} 22. bxc4 {[%clk 0:02:17]}  Rc8 {[%clk 0:01:34]} 23. Rc1 {[%clk 0:02:08]}  Ng7 {[%clk 0:01:10]} 24. Rxg5 {[%clk 0:02:04]}  Nf5 {[%clk 0:01:10]} 25. d5 {[%clk 0:02:00]}  e5 {[%clk 0:01:09]} 26. Bxe5 {[%clk 0:01:50]}  f6 {[%clk 0:00:58]} 27. Rxg6+ {[%clk 0:01:27]}  Kh7 {[%clk 0:00:58]} 28. Rxf6 {[%clk 0:01:20]}  Rxf6 {[%clk 0:00:59]} 29. Bxf6 {[%clk 0:01:21]}  Qxf6 {[%clk 0:00:59]} 30. Qd3 {[%clk 0:01:18]}  Kg7 {[%clk 0:00:58]} 31. c5 {[%clk 0:01:04]}  Re8 {[%clk 0:00:41]} 32. Rb1 {[%clk 0:00:54]}  Re7 {[%clk 0:00:37]} 33. d6 {[%clk 0:00:50]}  Re3 {[%clk 0:00:22]} 34. Qd5 {[%clk 0:00:39]}  Qh4 {[%clk 0:00:18]} 35. Rf1 {[%clk 0:00:18]}  Re1 {[%clk 0:00:17]} 36. Qxf5 {[%clk 0:00:17]}  Qd4+ {[%clk 0:00:17]} 37. Kh1 {[%clk 0:00:16]}  Rxf1# {[%clk 0:00:18]} 0-1


[Site "https://www.chess.com"]

[Event "Titled Tuesday Blitz March 29 Early 2022"]
[White "Murzin, Volodar"]
[Black "Rodriguez, Santiago"]
[WhiteFideId "44155573"]
[BlackFideId "3000591"]
[WhiteElo "2585"]
[BlackElo "2256"]
[Result "1/2-1/2"]
[Round "02"]
[TimeControl "180+1"]
[Date "2022.03.30"]
[WhiteClock "0:00:06"]
[BlackClock "0:00:05"]

1. e4 {[%clk 0:02:50]}  c5 {[%clk 0:03:00]} 2. Nf3 {[%clk 0:02:50]}  Nc6 {[%clk 0:03:00]} 3. Bb5 {[%clk 0:02:48]}  g6 {[%clk 0:03:00]} 4. Bxc6 {[%clk 0:02:47]}  dxc6 {[%clk 0:03:01]} 5. O-O {[%clk 0:02:45]}  Bg7 {[%clk 0:03:01]} 6. d3 {[%clk 0:02:43]}  Nf6 {[%clk 0:03:01]} 7. Re1 {[%clk 0:02:41]}  Nd7 {[%clk 0:02:53]} 8. e5 {[%clk 0:02:38]}  Nf8 {[%clk 0:02:52]} 9. Nbd2 {[%clk 0:02:37]}  Qc7 {[%clk 0:02:49]} 10. Nc4 {[%clk 0:02:34]}  Ne6 {[%clk 0:02:40]} 11. a4 {[%clk 0:02:33]}  O-O {[%clk 0:02:36]} 12. a5 {[%clk 0:02:31]}  Rb8 {[%clk 0:02:35]} 13. Bd2 {[%clk 0:02:26]}  b5 {[%clk 0:02:35]} 14. axb6 {[%clk 0:02:26]}  axb6 {[%clk 0:02:34]} 15. Qc1 {[%clk 0:02:27]}  b5 {[%clk 0:02:28]} 16. Ba5 {[%clk 0:02:24]}  Qa7 {[%clk 0:02:19]} 17. Ncd2 {[%clk 0:02:14]}  Ra8 {[%clk 0:01:47]} 18. Bb6 {[%clk 0:02:03]}  Qb7 {[%clk 0:01:33]} 19. Rxa8 {[%clk 0:01:57]}  Qxa8 {[%clk 0:01:34]} 20. Ne4 {[%clk 0:01:53]}  c4 {[%clk 0:01:29]} 21. dxc4 {[%clk 0:01:52]}  bxc4 {[%clk 0:01:30]} 22. Qe3 {[%clk 0:01:52]}  Qa2 {[%clk 0:01:26]} 23. Qc3 {[%clk 0:01:46]}  Bd7 {[%clk 0:01:17]} 24. Rd1 {[%clk 0:01:42]}  Rb8 {[%clk 0:01:11]} 25. Be3 {[%clk 0:01:36]}  Qxb2 {[%clk 0:00:59]} 26. Qxc4 {[%clk 0:01:32]}  Be8 {[%clk 0:00:59]} 27. Neg5 {[%clk 0:01:21]}  Nxg5 {[%clk 0:00:56]} 28. Bxg5 {[%clk 0:01:22]}  Bxe5 {[%clk 0:00:44]} 29. Bxe7 {[%clk 0:01:14]}  Bg7 {[%clk 0:00:44]} 30. h4 {[%clk 0:01:09]}  Ra8 {[%clk 0:00:38]} 31. Kh2 {[%clk 0:01:04]}  Be5+ {[%clk 0:00:36]} 32. g3 {[%clk 0:01:02]}  Bg7 {[%clk 0:00:30]} 33. Kg2 {[%clk 0:01:01]}  c5 {[%clk 0:00:28]} 34. Qxc5 {[%clk 0:00:56]}  Ba4 {[%clk 0:00:26]} 35. Rd2 {[%clk 0:00:55]}  Qb7 {[%clk 0:00:22]} 36. c4 {[%clk 0:00:32]}  Bc6 {[%clk 0:00:22]} 37. Rd3 {[%clk 0:00:32]}  Re8 {[%clk 0:00:20]} 38. Bg5 {[%clk 0:00:14]}  Rc8 {[%clk 0:00:20]} 39. Qe3 {[%clk 0:00:10]}  h6 {[%clk 0:00:11]} 40. Bf4 {[%clk 0:00:07]}  Bxf3+ {[%clk 0:00:09]} 41. Qxf3 {[%clk 0:00:06]}  Qxf3+ {[%clk 0:00:09]} 42. Kxf3 {[%clk 0:00:07]}  Rxc4 {[%clk 0:00:09]} 43. Rd8+ {[%clk 0:00:08]}  Kh7 {[%clk 0:00:09]} 44. Rd7 {[%clk 0:00:08]}  Kg8 {[%clk 0:00:08]} 45. Be3 {[%clk 0:00:07]}  Rc6 {[%clk 0:00:05]} 46. Ke4 {[%clk 0:00:07]}  h5 {[%clk 0:00:05]} 47. Kd5 {[%clk 0:00:07]}  Re6 {[%clk 0:00:05]} 48. Rd8+ {[%clk 0:00:07]}  Kh7 {[%clk 0:00:05]} 49. Rd7 {[%clk 0:00:08]}  Kg8 {[%clk 0:00:05]} 50. Bc5 {[%clk 0:00:08]}  Re2 {[%clk 0:00:04]} 51. Rb7 {[%clk 0:00:09]}  Rd2+ {[%clk 0:00:04]} 52. Ke4 {[%clk 0:00:09]}  Rd8 {[%clk 0:00:03]} 53. f3 {[%clk 0:00:06]}  Re8+ {[%clk 0:00:04]} 54. Kd3 {[%clk 0:00:06]}  Rc8 {[%clk 0:00:04]} 55. Bf2 {[%clk 0:00:06]}  Rd8+ {[%clk 0:00:04]} 56. Ke2 {[%clk 0:00:06]}  Re8+ {[%clk 0:00:05]} 57. Kf1 {[%clk 0:00:07]}  Be5 {[%clk 0:00:05]} 58. Kg2 {[%clk 0:00:07]}  Rb8 {[%clk 0:00:05]} 59. Rxb8+ {[%clk 0:00:06]}  Bxb8 {[%clk 0:00:04]} 60. g4 {[%clk 0:00:06]}  hxg4 {[%clk 0:00:04]} 61. fxg4 {[%clk 0:00:07]}  f5 {[%clk 0:00:04]} 62. Kf3 {[%clk 0:00:05]}  Kf7 {[%clk 0:00:04]} 63. h5 {[%clk 0:00:04]}  fxg4+ {[%clk 0:00:04]} 64. Kxg4 {[%clk 0:00:05]}  gxh5+ {[%clk 0:00:05]} 65. Kxh5 {[%clk 0:00:06]} 1/2-1/2


[Site "https://www.chess.com"]

[Event "Titled Tuesday Blitz March 29 Early 2022"]
[White "Nakamura, Hikaru"]
[Black "Hebden, Mark L"]
[WhiteFideId "2016192"]
[BlackFideId "400084"]
[WhiteElo "2850"]
[BlackElo "2457"]
[Result "1-0"]
[Round "02"]
[TimeControl "180+1"]
[Date "2022.03.29"]
[WhiteClock "0:02:02"]
[BlackClock "0:00:03"]

1. Nf3 {[%clk 0:03:00]}  Nf6 {[%clk 0:02:59]} 2. b3 {[%clk 0:03:01]}  g6 {[%clk 0:02:59]} 3. Bb2 {[%clk 0:03:01]}  Bg7 {[%clk 0:02:59]} 4. d4 {[%clk 0:03:02]}  O-O {[%clk 0:02:59]} 5. e3 {[%clk 0:03:02]}  c5 {[%clk 0:02:52]} 6. dxc5 {[%clk 0:03:01]}  Qa5+ {[%clk 0:02:52]} 7. c3 {[%clk 0:03:01]}  Qxc5 {[%clk 0:02:51]} 8. Ba3 {[%clk 0:03:02]}  Qa5 {[%clk 0:02:38]} 9. Bxe7 {[%clk 0:03:02]}  Re8 {[%clk 0:02:32]} 10. Bxf6 {[%clk 0:03:01]}  Bxf6 {[%clk 0:02:31]} 11. Qd2 {[%clk 0:03:02]}  Nc6 {[%clk 0:02:29]} 12. Be2 {[%clk 0:03:02]}  d5 {[%clk 0:02:24]} 13. O-O {[%clk 0:03:01]}  Bg4 {[%clk 0:02:24]} 14. Rd1 {[%clk 0:02:54]}  Bxf3 {[%clk 0:02:10]} 15. Bxf3 {[%clk 0:02:55]}  Rad8 {[%clk 0:02:10]} 16. a4 {[%clk 0:02:51]}  Ne7 {[%clk 0:01:57]} 17. b4 {[%clk 0:02:49]}  Qc7 {[%clk 0:01:55]} 18. Ra2 {[%clk 0:02:49]}  h5 {[%clk 0:01:51]} 19. Qc1 {[%clk 0:02:46]}  Rd6 {[%clk 0:01:38]} 20. Rad2 {[%clk 0:02:46]}  Red8 {[%clk 0:01:37]} 21. Rc2 {[%clk 0:02:43]}  Nf5 {[%clk 0:01:30]} 22. g3 {[%clk 0:02:38]}  h4 {[%clk 0:01:30]} 23. Nd2 {[%clk 0:02:33]}  hxg3 {[%clk 0:01:29]} 24. hxg3 {[%clk 0:02:34]}  Rc6 {[%clk 0:01:27]} 25. Nf1 {[%clk 0:02:14]}  Rxc3 {[%clk 0:01:23]} 26. Rxc3 {[%clk 0:02:15]}  Qxc3 {[%clk 0:01:23]} 27. Qxc3 {[%clk 0:02:15]}  Bxc3 {[%clk 0:01:22]} 28. Bxd5 {[%clk 0:02:16]}  Kg7 {[%clk 0:01:15]} 29. b5 {[%clk 0:02:16]}  Ne7 {[%clk 0:01:10]} 30. Bb3 {[%clk 0:02:15]}  Rxd1 {[%clk 0:01:09]} 31. Bxd1 {[%clk 0:02:16]}  Nd5 {[%clk 0:01:07]} 32. Bb3 {[%clk 0:02:16]}  Nb6 {[%clk 0:01:01]} 33. Nh2 {[%clk 0:02:16]}  Nd7 {[%clk 0:00:59]} 34. Kf1 {[%clk 0:02:16]}  Nc5 {[%clk 0:00:59]} 35. Bc2 {[%clk 0:02:17]}  a6 {[%clk 0:00:59]} 36. Ke2 {[%clk 0:02:16]}  axb5 {[%clk 0:00:58]} 37. axb5 {[%clk 0:02:17]}  f5 {[%clk 0:00:56]} 38. g4 {[%clk 0:02:15]}  Kf6 {[%clk 0:00:54]} 39. f4 {[%clk 0:02:15]}  b6 {[%clk 0:00:44]} 40. gxf5 {[%clk 0:02:12]}  gxf5 {[%clk 0:00:43]} 41. Nf3 {[%clk 0:02:12]}  Nb7 {[%clk 0:00:42]} 42. Ng5 {[%clk 0:02:09]}  Nd6 {[%clk 0:00:40]} 43. Bd3 {[%clk 0:02:09]}  Kg6 {[%clk 0:00:35]} 44. Nf3 {[%clk 0:02:08]}  Bf6 {[%clk 0:00:31]} 45. Kd2 {[%clk 0:02:04]}  Kf7 {[%clk 0:00:30]} 46. Kc2 {[%clk 0:02:04]}  Ke6 {[%clk 0:00:30]} 47. Kb3 {[%clk 0:02:05]}  Kd5 {[%clk 0:00:29]} 48. Kb4 {[%clk 0:02:05]}  Bb2 {[%clk 0:00:22]} 49. Ne1 {[%clk 0:02:02]}  Bc1 {[%clk 0:00:20]} 50. Ng2 {[%clk 0:02:00]}  Bd2+ {[%clk 0:00:19]} 51. Kb3 {[%clk 0:02:00]}  Kc5 {[%clk 0:00:19]} 52. Kc2 {[%clk 0:02:01]}  Ba5 {[%clk 0:00:17]} 53. Nh4 {[%clk 0:02:01]}  Kd5 {[%clk 0:00:10]} 54. Nxf5 {[%clk 0:01:59]}  Nxf5 {[%clk 0:00:08]} 55. Bxf5 {[%clk 0:02:00]}  Bb4 {[%clk 0:00:08]} 56. Kd3 {[%clk 0:02:00]}  Ba3 {[%clk 0:00:07]} 57. Bd7 {[%clk 0:02:00]}  Bc1 {[%clk 0:00:07]} 58. Bc6+ {[%clk 0:02:01]}  Kd6 {[%clk 0:00:06]} 59. Ke4 {[%clk 0:02:02]}  Ke6 {[%clk 0:00:06]} 60. Kf3 {[%clk 0:02:02]}  Kf6 {[%clk 0:00:06]} 61. e4 {[%clk 0:02:03]}  Ke6 {[%clk 0:00:07]} 62. Bd5+ {[%clk 0:02:02]}  Kf6 {[%clk 0:00:04]} 63. e5+ {[%clk 0:02:01]}  Kf5 {[%clk 0:00:04]} 64. Be4+ {[%clk 0:02:01]}  Ke6 {[%clk 0:00:04]} 65. Bc2 {[%clk 0:02:01]}  Bd2 {[%clk 0:00:03]} 66. Ke4 {[%clk 0:02:02]} 1-0


[Site "https://www.chess.com"]

[Event "Titled Tuesday Blitz March 29 Early 2022"]
[White "Nozdrachev, Leonid"]
[Black "Kamsky, Gata"]
[WhiteFideId "24113433"]
[BlackFideId "2000024"]
[WhiteElo "2118"]
[BlackElo "2645"]
[Result "0-1"]
[Round "02"]
[TimeControl "180+1"]
[Date "2022.03.29"]
[WhiteClock "0:00:02"]
[BlackClock "0:00:17"]

1. e4 {[%clk 0:02:59]}  e5 {[%clk 0:02:59]} 2. Nf3 {[%clk 0:02:58]}  Nc6 {[%clk 0:02:58]} 3. Bc4 {[%clk 0:02:57]}  Nf6 {[%clk 0:02:57]} 4. d3 {[%clk 0:02:56]}  h6 {[%clk 0:02:56]} 5. O-O {[%clk 0:02:55]}  d6 {[%clk 0:02:56]} 6. c3 {[%clk 0:02:54]}  g6 {[%clk 0:02:41]} 7. Re1 {[%clk 0:02:47]}  Bg7 {[%clk 0:02:40]} 8. Nh4 {[%clk 0:02:33]}  a6 {[%clk 0:02:01]} 9. a4 {[%clk 0:02:29]}  d5 {[%clk 0:01:37]} 10. exd5 {[%clk 0:02:25]}  Nxd5 {[%clk 0:01:37]} 11. Nf3 {[%clk 0:01:52]}  O-O {[%clk 0:01:36]} 12. Nbd2 {[%clk 0:01:48]}  Be6 {[%clk 0:01:28]} 13. Nf1 {[%clk 0:01:47]}  Qd7 {[%clk 0:01:25]} 14. a5 {[%clk 0:01:36]}  Rad8 {[%clk 0:01:24]} 15. Qb3 {[%clk 0:01:33]}  Qc8 {[%clk 0:01:22]} 16. Ng3 {[%clk 0:01:29]}  f5 {[%clk 0:01:12]} 17. Bd2 {[%clk 0:01:05]}  Bf7 {[%clk 0:01:10]} 18. h3 {[%clk 0:00:52]}  Nde7 {[%clk 0:01:02]} 19. Bxf7+ {[%clk 0:00:48]}  Rxf7 {[%clk 0:01:02]} 20. Qc4 {[%clk 0:00:37]}  Qd7 {[%clk 0:01:00]} 21. Qb3 {[%clk 0:00:33]}  Qxd3 {[%clk 0:00:37]} 22. Qxb7 {[%clk 0:00:30]}  e4 {[%clk 0:00:38]} 23. Rad1 {[%clk 0:00:20]}  exf3 {[%clk 0:00:37]} 24. Bf4 {[%clk 0:00:12]}  Qb5 {[%clk 0:00:20]} 25. Rxd8+ {[%clk 0:00:10]}  Nxd8 {[%clk 0:00:19]} 26. Qxc7 {[%clk 0:00:09]}  Nec6 {[%clk 0:00:18]} 27. Re8+ {[%clk 0:00:06]}  Kh7 {[%clk 0:00:17]} 28. Qc8 {[%clk 0:00:03]}  Qxa5 {[%clk 0:00:17]} 29. Be3 {[%clk 0:00:02]}  Qa1+ {[%clk 0:00:17]} 30. Kh2 {[%clk 0:00:02]}  fxg2 {[%clk 0:00:17]} 31. Kxg2 {[%clk 0:00:03]}  f4 {[%clk 0:00:17]} 32. Bd4 {[%clk 0:00:02]}  f3+ {[%clk 0:00:16]} 33. Kh2 {[%clk 0:00:02]}  Nxd4 {[%clk 0:00:17]} 0-1


[Site "https://www.chess.com"]

[Event "Titled Tuesday Blitz March 29 Early 2022"]
[White "Obolentseva, Alexandra"]
[Black "Lopez Del Alamo, Antonio"]
[WhiteFideId "24153648"]
[BlackFideId "2227339"]
[WhiteElo "2113"]
[BlackElo "2082"]
[Result "1-0"]
[Round "02"]
[TimeControl "180+1"]
[Date "2022.03.30"]
[WhiteClock "0:01:54"]
[BlackClock "0:02:22"]

1. d4 {[%clk 0:03:00]}  Nf6 {[%clk 0:02:59]} 2. c4 {[%clk 0:03:00]}  g6 {[%clk 0:02:59]} 3. Nf3 {[%clk 0:02:58]}  Bg7 {[%clk 0:02:58]} 4. Nc3 {[%clk 0:02:58]}  O-O {[%clk 0:02:58]} 5. e4 {[%clk 0:02:58]}  d6 {[%clk 0:02:58]} 6. Be2 {[%clk 0:02:58]}  e5 {[%clk 0:02:58]} 7. O-O {[%clk 0:02:58]}  Nc6 {[%clk 0:02:58]} 8. d5 {[%clk 0:02:58]}  Ne7 {[%clk 0:02:58]} 9. b4 {[%clk 0:02:52]}  Nh5 {[%clk 0:02:48]} 10. c5 {[%clk 0:02:48]}  Nf4 {[%clk 0:02:46]} 11. Bc4 {[%clk 0:02:48]}  h6 {[%clk 0:02:42]} 12. Re1 {[%clk 0:02:16]}  g5 {[%clk 0:02:28]} 13. Bxf4 {[%clk 0:02:00]}  exf4 {[%clk 0:02:22]} 14. Rc1 {[%clk 0:01:54]} 1-0


[Site "https://www.chess.com"]

[Event "Titled Tuesday Blitz March 29 Early 2022"]
[White "Odegov, Artem"]
[Black "Kopylov, Alexander A."]
[WhiteFideId "34183644"]
[BlackFideId "4164857"]
[WhiteElo "2286"]
[BlackElo "2436"]
[Result "1-0"]
[Round "02"]
[TimeControl "180+1"]
[Date "2022.03.29"]
[WhiteClock "0:01:49"]
[BlackClock "0:01:43"]

1. d4 {[%clk 0:03:00]}  d5 {[%clk 0:02:56]} 2. c4 {[%clk 0:02:54]}  e6 {[%clk 0:02:54]} 3. Nc3 {[%clk 0:02:54]}  dxc4 {[%clk 0:02:54]} 4. e4 {[%clk 0:02:51]}  Nf6 {[%clk 0:02:51]} 5. Bxc4 {[%clk 0:02:51]}  c5 {[%clk 0:02:51]} 6. Nf3 {[%clk 0:02:47]}  a6 {[%clk 0:02:46]} 7. a4 {[%clk 0:02:38]}  Nc6 {[%clk 0:02:43]} 8. d5 {[%clk 0:02:32]}  exd5 {[%clk 0:02:37]} 9. exd5 {[%clk 0:02:33]}  Nb8 {[%clk 0:02:30]} 10. O-O {[%clk 0:02:32]}  Be7 {[%clk 0:02:30]} 11. Bf4 {[%clk 0:02:28]}  O-O {[%clk 0:02:29]} 12. d6 {[%clk 0:02:29]}  Re8 {[%clk 0:02:24]} 13. dxe7 {[%clk 0:02:28]}  Qxe7 {[%clk 0:02:24]} 14. Re1 {[%clk 0:02:28]}  Qf8 {[%clk 0:02:23]} 15. Rxe8 {[%clk 0:02:25]}  Qxe8 {[%clk 0:02:23]} 16. Bxb8 {[%clk 0:02:04]}  Rxb8 {[%clk 0:02:22]} 17. Qd6 {[%clk 0:02:04]}  Bf5 {[%clk 0:02:09]} 18. Re1 {[%clk 0:02:02]}  Qc8 {[%clk 0:01:48]} 19. Ne5 {[%clk 0:01:55]}  Bg6 {[%clk 0:01:44]} 20. Nxg6 {[%clk 0:01:49]}  hxg6 {[%clk 0:01:43]} 21. Nd5 {[%clk 0:01:49]} 1-0


[Site "https://www.chess.com"]

[Event "Titled Tuesday Blitz March 29 Early 2022"]
[White "Omelja, Artem"]
[Black "Xu, Yi"]
[WhiteFideId "14119846"]
[BlackFideId "8605564"]
[WhiteElo "2382"]
[BlackElo "2471"]
[Result "0-1"]
[Round "02"]
[TimeControl "180+1"]
[Date "2022.03.29"]
[WhiteClock "0:00:07"]
[BlackClock "0:00:11"]

1. d4 {[%clk 0:03:00]}  Nf6 {[%clk 0:02:59]} 2. c4 {[%clk 0:03:00]}  e6 {[%clk 0:02:59]} 3. Nf3 {[%clk 0:03:00]}  d5 {[%clk 0:02:59]} 4. Nc3 {[%clk 0:03:00]}  Bb4 {[%clk 0:02:59]} 5. cxd5 {[%clk 0:02:59]}  exd5 {[%clk 0:02:59]} 6. Qa4+ {[%clk 0:03:00]}  Nc6 {[%clk 0:02:59]} 7. Bg5 {[%clk 0:03:00]}  h6 {[%clk 0:02:59]} 8. Bxf6 {[%clk 0:02:59]}  Qxf6 {[%clk 0:02:59]} 9. e3 {[%clk 0:03:00]}  O-O {[%clk 0:02:59]} 10. Bb5 {[%clk 0:02:46]}  Bxc3+ {[%clk 0:02:24]} 11. bxc3 {[%clk 0:02:44]}  Ne7 {[%clk 0:02:24]} 12. O-O {[%clk 0:02:39]}  Bf5 {[%clk 0:02:19]} 13. Be2 {[%clk 0:02:33]}  c6 {[%clk 0:02:13]} 14. Qb3 {[%clk 0:02:18]}  b5 {[%clk 0:02:10]} 15. Ne5 {[%clk 0:02:08]}  Ng6 {[%clk 0:01:57]} 16. Nd3 {[%clk 0:01:34]}  Nh4 {[%clk 0:01:43]} 17. Ne5 {[%clk 0:01:05]}  a6 {[%clk 0:01:15]} 18. Qa3 {[%clk 0:00:47]}  Rfe8 {[%clk 0:01:06]} 19. Qc5 {[%clk 0:00:46]}  Rac8 {[%clk 0:01:03]} 20. a4 {[%clk 0:00:33]}  Be4 {[%clk 0:00:55]} 21. g3 {[%clk 0:00:31]}  Ng6 {[%clk 0:00:43]} 22. Nxg6 {[%clk 0:00:22]}  Qxg6 {[%clk 0:00:43]} 23. Rfc1 {[%clk 0:00:17]}  Qf5 {[%clk 0:00:37]} 24. Qb6 {[%clk 0:00:16]}  Re6 {[%clk 0:00:28]} 25. Qxa6 {[%clk 0:00:13]}  Rf8 {[%clk 0:00:28]} 26. axb5 {[%clk 0:00:13]}  cxb5 {[%clk 0:00:24]} 27. Qxb5 {[%clk 0:00:13]}  Rf6 {[%clk 0:00:23]} 28. f4 {[%clk 0:00:06]}  Rg6 {[%clk 0:00:20]} 29. Bf1 {[%clk 0:00:06]}  h5 {[%clk 0:00:17]} 30. Qe2 {[%clk 0:00:06]}  h4 {[%clk 0:00:17]} 31. Qf2 {[%clk 0:00:07]}  hxg3 {[%clk 0:00:16]} 32. hxg3 {[%clk 0:00:08]}  Qg4 {[%clk 0:00:12]} 33. Be2 {[%clk 0:00:05]}  Qh3 {[%clk 0:00:11]} 34. Bf3 {[%clk 0:00:02]}  Rxg3+ {[%clk 0:00:10]} 35. Bg2 {[%clk 0:00:01]}  Rxg2+ {[%clk 0:00:10]} 36. Kf1 {[%clk 0:00:01]}  Rxf2+ {[%clk 0:00:11]} 37. Kxf2 {[%clk 0:00:02]}  Qf3+ {[%clk 0:00:10]} 38. Ke1 {[%clk 0:00:03]}  Qxe3+ {[%clk 0:00:10]} 39. Kd1 {[%clk 0:00:04]}  Qd3+ {[%clk 0:00:10]} 40. Ke1 {[%clk 0:00:05]}  Bf3 {[%clk 0:00:09]} 41. Kf2 {[%clk 0:00:05]}  Qe2+ {[%clk 0:00:09]} 42. Kg3 {[%clk 0:00:06]}  Qg2+ {[%clk 0:00:10]} 43. Kh4 {[%clk 0:00:07]}  Qg4# {[%clk 0:00:11]} 0-1


[Site "https://www.chess.com"]